fUSD/lending_fUSD_20240725
["ID","MTS","AMOUNT","RATE_DAILY","PERIOD"]
[333161363,1721895065086,-500.0,0.00010999,2]
[333161364,1721895065095,-1572.32,0.00010999,2]
[333161365,1721895065104,-500.0,0.00010999,2]
[333161366,1721895065113,-1572.32,0.00010999,2]
[333161367,1721895065124,-500.0,0.00010999,2]
[333161368,1721895065136,-589.2,0.00010999,2]
[333161369,1721895065146,-1572.32,0.00010999,2]
[333161370,1721895065156,-1572.32,0.00010999,2]
[333161371,1721895065167,-1572.32,0.00010999,2]
[333161372,1721895065176,-1572.32,0.00010999,2]
[333161373,1721895065186,-1572.32,0.00010999,2]
[333161374,1721895065195,-1572.32,0.00010999,2]
[333161375,1721895065205,-1572.51,0.00010999,2]
[333161376,1721895065214,-500.0,0.00010999,2]
[333161377,1721895065224,-500.0,0.00010999,2]
[333161378,1721895065233,-500.0,0.00010999,2]
[333161379,1721895065243,-500.0,0.00010999,2]
[333161380,1721895065252,-500.0,0.00010999,2]
[333161381,1721895065262,-500.0,0.00010999,2]
[333161382,1721895065271,-500.0,0.00010999,2]
[333161383,1721895065280,-500.0,0.00010999,2]
[333161384,1721895065290,-500.0,0.00010999,2]
[333161385,1721895065300,-500.0,0.00010999,2]
[333161386,1721895065309,-485.44811149,0.00010999,2]
[333161387,1721895065319,-500.92,0.00010999,2]
[333161388,1721895065329,-500.0,0.00010999,2]
[333161389,1721895065339,-500.92,0.00010999,2]
[333161390,1721895065348,-896.85,0.00010999,2]
[333161391,1721895065358,-500.0,0.00010999,2]
[333161392,1721895065367,-500.92,0.00010999,2]
[333161393,1721895065379,-896.85,0.00010999,2]
[333161394,1721895065388,-500.0,0.00010999,2]
[333161395,1721895065397,-500.92,0.00010999,2]
[333161396,1721895065408,-896.85,0.00010999,2]
[333161397,1721895065417,-500.0,0.00010999,2]
[333161398,1721895065428,-896.85,0.00010999,2]
[333161399,1721895065437,-500.0,0.00010999,2]
[333161400,1721895065447,-500.92,0.00010999,2]
[333161401,1721895065456,-896.85,0.00010999,2]
[333161402,1721895065465,-500.0,0.00010999,2]
[333161403,1721895065474,-500.92,0.00010999,2]
[333161404,1721895065484,-896.85,0.00010999,2]
[333161405,1721895065493,-500.0,0.00010999,2]
[333161406,1721895065503,-896.85,0.00010999,2]
[333161407,1721895065512,-500.92,0.00010999,2]
[333161408,1721895065521,-500.0,0.00010999,2]
[333161409,1721895065531,-896.85,0.00010999,2]
[333161410,1721895065540,-500.0,0.00010999,2]
[333161411,1721895065549,-896.85,0.00010999,2]
[333161412,1721895065559,-404.93,0.00010999,2]
[333161413,1721895065568,-500.92,0.00010999,2]
[333161414,1721895065577,-896.85,0.00010999,2]
[333161415,1721895065587,-500.92,0.00010999,2]
[333161416,1721895065596,-896.85,0.00010999,2]
[333161417,1721895065605,-500.92,0.00010999,2]
[333161418,1721895065614,-896.85,0.00010999,2]
[333161419,1721895065623,-500.92,0.00010999,2]
[333161420,1721895065634,-500.0,0.00010999,2]
[333161421,1721895065643,-500.92,0.00010999,2]
[333161422,1721895065652,-500.92,0.00010999,2]
[333161423,1721895065661,-896.85,0.00010999,2]
[333161424,1721895065671,-500.0,0.00010999,2]
[333161425,1721895065680,-897.0,0.00010999,2]
[333161426,1721895065689,-500.96,0.00010999,2]
[333161427,1721895065698,-500.0,0.00010999,2]
[333161428,1721895065707,-500.0,0.00010999,2]
[333161429,1721895065717,-500.0,0.00010999,2]
[333161430,1721895065726,-500.0,0.00010999,2]
[333161431,1721895065735,-500.0,0.00010999,2]
[333161432,1721895065745,-500.0,0.00010999,2]
[333161433,1721895065754,-500.0,0.00010999,2]
[333161434,1721895065764,-500.0,0.00010999,2]
[333161435,1721895065773,-500.0,0.00010999,2]
[333161436,1721895065782,-500.0,0.00010999,2]
[333161437,1721895065792,-500.0,0.00010999,2]
[333161438,1721895065801,-500.0,0.00010999,2]
[333161439,1721895065811,-500.0,0.00010999,2]
[333161440,1721895065820,-500.0,0.00010999,2]
[333161441,1721895065830,-500.0,0.00010999,2]
[333161442,1721895065840,-500.0,0.00010999,2]
[333161443,1721895065850,-500.0,0.00010999,2]
[333161444,1721895065860,-500.0,0.00010999,2]
[333161445,1721895065871,-263.05,0.00010999,2]
[333161446,1721895065881,-500.0,0.00010999,2]
[333161447,1721895065891,-592.91810209,0.00010999,2]
[333161448,1721895065901,-2636.17,0.00010999,2]
[333161449,1721895065910,-2636.17,0.00010999,2]
[333161450,1721895065919,-2636.17,0.00010999,2]
[333161451,1721895065929,-2636.17,0.00010999,2]
[333161452,1721895065939,-2636.17,0.00010999,2]
[333161453,1721895065949,-2636.17,0.00010999,2]
[333161454,1721895065958,-2636.17,0.00010999,2]
[333161455,1721895065968,-2636.17,0.00010999,2]
[333161456,1721895065977,-2636.17,0.00010999,2]
[333161457,1721895065986,-2636.17,0.00010999,2]
[333161458,1721895065996,-500.0,0.00010999,2]
[333161459,1721895066005,-2636.17,0.00010999,2]
[333161460,1721895066014,-500.0,0.00010999,2]
[333161461,1721895066023,-2636.17,0.00010999,2]
[333161462,1721895066033,-500.0,0.00010999,2]
[333161463,1721895066043,-2636.17,0.00010999,2]
[333161464,1721895066052,-500.0,0.00010999,2]
[333161465,1721895066061,-2636.21193496,0.00010999,2]
[333161466,1721895066071,-500.0,0.00010999,2]
[333161467,1721895066080,-1454.16,0.00010999,2]
[333161468,1721895066089,-589.31,0.00010999,2]
[333161469,1721895066099,-500.0,0.00010999,2]
[333161470,1721895066108,-1454.16,0.00010999,2]
[333161471,1721895066117,-589.31,0.00010999,2]
[333161472,1721895066131,-1454.16,0.00010999,2]
[333161473,1721895066140,-589.31,0.00010999,2]
[333161474,1721895066150,-500.0,0.00010999,2]
[333161475,1721895066159,-589.31,0.00010999,2]
[333161476,1721895066169,-1454.16,0.00010999,2]
[333161477,1721895066178,-589.31,0.00010999,2]
[333161478,1721895066188,-1454.16,0.00010999,2]
[333161479,1721895066199,-500.0,0.00010999,2]
[333161480,1721895066209,-1454.16,0.00010999,2]
[333161481,1721895066219,-589.31,0.00010999,2]
[333161482,1721895066228,-589.31,0.00010999,2]
[333161483,1721895066238,-500.0,0.00010999,2]
[333161484,1721895066248,-1454.16,0.00010999,2]
[333161485,1721895066258,-500.0,0.00010999,2]
[333161486,1721895066268,-1454.16,0.00010999,2]
[333161487,1721895066278,-589.31,0.00010999,2]
[333161488,1721895066287,-500.0,0.00010999,2]
[333161489,1721895066298,-1454.16,0.00010999,2]
[333161490,1721895066307,-589.31,0.00010999,2]
[333161491,1721895066319,-500.0,0.00010999,2]
[333161492,1721895066330,-1454.16,0.00010999,2]
[333161493,1721895066339,-589.31,0.00010999,2]
[333161494,1721895066349,-407.54,0.00010999,2]
[333161495,1721895066358,-1454.16,0.00010999,2]
[333161496,1721895066367,-589.31,0.00010999,2]
[333161497,1721895066377,-1454.16,0.00010999,2]
[333161498,1721895066389,-589.31,0.00010999,2]
[333161499,1721895066399,-1454.16,0.00010999,2]
[333161500,1721895066409,-589.31,0.00010999,2]
[333161501,1721895066418,-553.35,0.00010999,2]
[333161502,1721895066428,-1454.38913853,0.00010999,2]
[333161503,1721895066437,-589.54,0.00010999,2]
[333161504,1721895066447,-565.08,0.00010999,2]
[333161505,1721895066458,-565.08,0.00010999,2]
[333161506,1721895066467,-565.08,0.00010999,2]
[333161507,1721895066477,-500.0,0.00010999,2]
[333161508,1721895066487,-500.0,0.00010999,2]
[333161509,1721895066496,-565.08,0.00010999,2]
[333161510,1721895066654,-500.0,0.00010999,2]
[333161511,1721895066665,-500.0,0.00010999,2]
[333161512,1721895066675,-500.0,0.00010999,2]
[333161513,1721895066685,-500.0,0.00010999,2]
[333161514,1721895066695,-565.08,0.00010999,2]
[333161515,1721895066704,-500.0,0.00010999,2]
[333161516,1721895066715,-565.08,0.00010999,2]
[333161517,1721895066724,-500.0,0.00010999,2]
[333161518,1721895066734,-500.0,0.00010999,2]
[333161519,1721895066744,-500.0,0.00010999,2]
[333161520,1721895066754,-565.08,0.00010999,2]
[333161521,1721895066763,-150.0,0.00010999,2]
[333161522,1721895066773,-500.0,0.00010999,2]
[333161523,1721895066782,-187.43471178,0.00010999,2]
[333161524,1721895066792,-565.08,0.00010999,2]
[333161525,1721895066801,-500.0,0.00010999,2]
[333161526,1721895066811,-555.33,0.00010999,2]
[333161527,1721895066820,-565.08,0.00010999,2]
[333161528,1721895066830,-162.87,0.00010999,2]
[333161529,1721895066839,-555.33,0.00010999,2]
[333161530,1721895066849,-565.08,0.00010999,2]
[333161531,1721895066858,-555.33,0.00010999,2]
[333161532,1721895066867,-565.08,0.00010999,2]
[333161533,1721895066876,-565.08,0.00010999,2]
[333161534,1721895066887,-555.33,0.00010999,2]
[333161535,1721895066896,-565.1,0.00010999,2]
[333161536,1721895066906,-555.33,0.00010999,2]
[333161537,1721895066915,-555.33,0.00010999,2]
[333161538,1721895066925,-555.33,0.00010999,2]
[333161539,1721895066934,-555.33,0.00010999,2]
[333161540,1721895066943,-555.33,0.00010999,2]
[333161541,1721895066952,-555.33,0.00010999,2]
[333161542,1721895066961,-555.33,0.00010999,2]
[333161543,1721895066970,-555.33,0.00010999,2]
[333161544,1721895066979,-555.33,0.00010999,2]
[333161545,1721895066989,-555.35,0.00010999,2]
[333161546,1721895066998,-1663.27,0.00010999,2]
[333161547,1721895067007,-1663.27,0.00010999,2]
[333161548,1721895067016,-1663.27,0.00010999,2]
[333161549,1721895067025,-1663.27,0.00010999,2]
[333161550,1721895067034,-1663.27,0.00010999,2]
[333161551,1721895067043,-932.58,0.00010999,2]
[333161552,1721895067052,-1663.27,0.00010999,2]
[333161553,1721895067062,-932.58,0.00010999,2]
[333161554,1721895067071,-1663.27,0.00010999,2]
[333161555,1721895067081,-932.58,0.00010999,2]
[333161556,1721895067090,-1663.27,0.00010999,2]
[333161557,1721895067099,-932.58,0.00010999,2]
[333161558,1721895067108,-1663.27,0.00010999,2]
[333161559,1721895067121,-932.58,0.00010999,2]
[333161560,1721895067138,-1663.27,0.00010999,2]
[333161561,1721895067150,-932.58,0.00010999,2]
[333161562,1721895067159,-1663.27,0.00010999,2]
[333161563,1721895067170,-932.58,0.00010999,2]
[333161564,1721895067179,-1663.27,0.00010999,2]
[333161565,1721895067188,-932.58,0.00010999,2]
[333161566,1721895067198,-932.58,0.00010999,2]
[333161567,1721895067207,-1663.4795,0.00010999,2]
[333161568,1721895067217,-932.58,0.00010999,2]
[333161569,1721895067227,-932.58,0.00010999,2]
[333161570,1721895067236,-932.58,0.00010999,2]
[333161571,1721895067246,-932.58,0.00010999,2]
[333161572,1721895067255,-932.77550907,0.00010999,2]
[333161573,1721895067264,-500.0,0.00010999,2]
[333161574,1721895067274,-459.18,0.00010999,2]
[333161575,1721895067284,-910.05,0.00010999,2]
[333161576,1721895067294,-910.05,0.00010999,2]
[333161577,1721895067304,-910.05,0.00010999,2]
[333161578,1721895067314,-910.05,0.00010999,2]
[333161579,1721895067324,-910.05,0.00010999,2]
[333161580,1721895067336,-910.05,0.00010999,2]
[333161581,1721895067346,-910.05,0.00010999,2]
[333161582,1721895067356,-1707.1,0.00010999,2]
[333161583,1721895067366,-910.05,0.00010999,2]
[333161584,1721895067376,-1707.1,0.00010999,2]
[333161585,1721895067387,-910.05,0.00010999,2]
[333161586,1721895067398,-1707.1,0.00010999,2]
[333161587,1721895067407,-910.05,0.00010999,2]
[333161588,1721895067417,-1707.1,0.00010999,2]
[333161589,1721895067427,-910.05,0.00010999,2]
[333161590,1721895067436,-1707.1,0.00010999,2]
[333161591,1721895067446,-781.66,0.00010999,2]
[333161592,1721895067455,-781.66,0.00010999,2]
[333161593,1721895067465,-1707.1,0.00010999,2]
[333161594,1721895067474,-781.66,0.00010999,2]
[333161595,1721895067484,-1707.1,0.00010999,2]
[333161596,1721895067494,-781.66,0.00010999,2]
[333161597,1721895067503,-1707.1,0.00010999,2]
[333161598,1721895067513,-910.05,0.00010999,2]
[333161599,1721895067522,-781.66,0.00010999,2]
[333161600,1721895067531,-1707.1,0.00010999,2]
[333161601,1721895067540,-910.05360776,0.00010999,2]
[333161602,1721895067549,-781.66,0.00010999,2]
[333161603,1721895067558,-1707.1,0.00010999,2]
[333161604,1721895067568,-1707.1,0.00010999,2]
[333161605,1721895067577,-781.66,0.00010999,2]
[333161606,1721895067586,-1707.1,0.00010999,2]
[333161607,1721895067596,-500.0,0.00010999,2]
[333161608,1721895067605,-781.66,0.00010999,2]
[333161609,1721895067615,-1707.1,0.00010999,2]
[333161610,1721895067625,-500.0,0.00010999,2]
[333161611,1721895067635,-781.66,0.00010999,2]
[333161612,1721895067645,-1707.30620001,0.00010999,2]
[333161613,1721895067654,-500.0,0.00010999,2]
[333161614,1721895067665,-781.66,0.00010999,2]
[333161615,1721895067674,-500.0,0.00010999,2]
[333161616,1721895067684,-781.66,0.00010999,2]
[333161617,1721895067694,-366.71,0.00010999,2]
[333161618,1721895067704,-781.66,0.00010999,2]
[333161619,1721895067713,-781.66,0.00010999,2]
[333161620,1721895067723,-500.0,0.00010999,2]
[333161621,1721895067732,-500.0,0.00010999,2]
[333161622,1721895067741,-781.68555264,0.00010999,2]
[333161623,1721895067751,-500.0,0.00010999,2]
[333161624,1721895067760,-500.0,0.00010999,2]
[333161625,1721895067770,-500.0,0.00010999,2]
[333161626,1721895067779,-500.0,0.00010999,2]
[333161627,1721895067789,-355.36,0.00010999,2]
[333161628,1721895067798,-500.0,0.00010999,2]
[333161629,1721895067808,-500.0,0.00010999,2]
[333161630,1721895067817,-500.0,0.00010999,2]
[333161631,1721895067827,-500.0,0.00010999,2]
[333161632,1721895067836,-500.0,0.00010999,2]
[333161633,1721895067846,-500.0,0.00010999,2]
[333161634,1721895067855,-500.0,0.00010999,2]
[333161635,1721895067865,-1232.44,0.00010999,2]
[333161636,1721895067874,-500.0,0.00010999,2]
[333161637,1721895067885,-500.0,0.00010999,2]
[333161638,1721895067894,-1232.44,0.00010999,2]
[333161639,1721895067904,-500.0,0.00010999,2]
[333161640,1721895067913,-500.0,0.00010999,2]
[333161641,1721895067922,-1232.44,0.00010999,2]
[333161642,1721895067931,-500.0,0.00010999,2]
[333161643,1721895067941,-500.0,0.00010999,2]
[333161644,1721895067951,-1232.44,0.00010999,2]
[333161645,1721895067961,-528.49,0.00010999,2]
[333161646,1721895067970,-500.0,0.00010999,2]
[333161647,1721895067980,-1232.44,0.00010999,2]
[333161648,1721895067990,-1232.44,0.00010999,2]
[333161649,1721895067999,-500.0,0.00010999,2]
[333161650,1721895068009,-1232.44,0.00010999,2]
[333161651,1721895068019,-1232.44,0.00010999,2]
[333161652,1721895068028,-500.0,0.00010999,2]
[333161653,1721895068038,-500.0,0.00010999,2]
[333161654,1721895068048,-1232.44,0.00010999,2]
[333161655,1721895068057,-385.46001595,0.00010999,2]
[333161656,1721895068067,-1232.44,0.00010999,2]
[333161657,1721895068076,-1232.44,0.00010999,2]
[333161658,1721895068085,-2813138.59791671,0.00011,2]
[333161659,1721895068398,-2611.44251202,0.00011,2]
[333161660,1721895068420,-280.407,0.00011,2]
[333161661,1721895068432,-888.51999758,0.00011,2]
[333161662,1721895068443,-31011.17217745,0.00011,2]
[333161663,1721895068459,-300.0055516,0.00011,2]
[333161664,1721895068491,-347.9736861,0.00011,2]
[333161665,1721895068523,-830.97992353,0.00011,2]
[333161666,1721895068535,-379.06760604,0.00011,2]
[333161667,1721895068826,-252.72893978,9.667e-05,2]
[333161668,1721895068836,-500.0,0.00010984,2]
[333161669,1721895068846,-206.51449286,0.00010986,2]
[333161670,1721895068858,-293.48550714,0.00010986,2]
[333161671,1721895068868,-500.0,0.00010988,2]
[333161672,1721895068878,-500.0,0.0001099,2]
[333161673,1721895068887,-500.0,0.00010991,2]
[333161674,1721895068897,-500.0,0.00010994,2]
[333161675,1721895068907,-1232.44,0.00010999,2]
[333161676,1721895068916,-1232.44,0.00010999,2]
[333161677,1721895068925,-1232.49,0.00010999,2]
[333161678,1721895068935,-443.05874044,0.00011,2]
[333161679,1721895068951,-250.0,0.00011,2]
[333161680,1721895068963,-250.0,0.00011,2]
[333161681,1721895068989,-500.0,0.00010996,2]
[333161682,1721895068998,-1112.24512,0.00011,2]
[333161683,1721895069010,-3546.0513412,0.00011,2]
[333161684,1721895069191,-500.0,0.00010958,2]
[333161685,1721895069202,-302.06340159,0.00010983,2]
[333161686,1721895069219,-189.61659841,0.00010983,2]
[333161687,1721895069229,-500.0,0.00010996,2]
[333161688,1721895069238,-237.75820456,0.00010998,2]
[333161689,1721895069250,-262.24179544,0.00010998,2]
[333161690,1721895069259,-142.58936853,0.00010999,2]
[333161691,1721895069270,-345.020001,0.00010999,2]
[333161692,1721895069285,-12.39063047,0.00010999,2]
[333161693,1721895069294,-500.0,0.00010999,2]
[333161694,1721895069303,-500.0,0.00010999,2]
[333161695,1721895069313,-500.0,0.00010999,2]
[333161696,1721895069322,-500.0,0.00010999,2]
[333161697,1721895069331,-213.64337073,0.00010999,2]
[333161698,1721895069343,-286.35662927,0.00010999,2]
[333161699,1721895069513,-619.34,0.00010999,2]
[333161700,1721895069524,-611.1234305,0.00011,2]
[333161701,1721895069574,-835.04991627,0.00011,2]
[333161702,1721895069593,-813.41136373,0.00011,2]
[333161703,1721895069604,-320.26401847,0.00011,2]
[333161704,1721895069817,-331.28,0.00010958,2]
[333161705,1721895069829,-168.72,0.00010958,2]
[333161706,1721895069838,-633.93,0.00010983,2]
[333161707,1721895069847,-4717.2615904,0.00011,2]
[333161708,1721895069859,-3160.5631174,0.00011,2]
[333161709,1721895069875,-768.85,0.00011,2]
[333161710,1721895069894,-193335.35573236,0.00011,2]
[333161711,1721895069904,-234285.81777346,0.00011,2]
[333161712,1721895069919,-263.09930693,0.00011,2]
[333161713,1721895069929,-4940.94527216,0.00011,2]
[333161723,1721895442149,699.12,8.219e-05,2]
[333161770,1721895994887,724.8,8.219e-05,2]
[333161786,1721896231437,150.0,0.0002003,120]
[333161811,1721896232536,-264.88584485,9.5e-05,2]
[333161812,1721896232546,-700.0,9.588e-05,2]
[333161813,1721896232556,-900.0,9.588e-05,2]
[333161814,1721896232565,-480.0,9.807e-05,2]
[333161815,1721896232575,-1075.82,9.863e-05,2]
[333161816,1721896232584,-2000.0,9.904e-05,2]
[333161817,1721896232593,-520.0,9.933e-05,2]
[333161818,1721896232602,-169.18,9.99e-05,2]
[333161819,1721896232612,-499.99,9.99e-05,2]
[333161820,1721896232621,-150.0,9.999e-05,2]
[333161821,1721896232631,-1000.0,0.0001,7]
[333161822,1721896232640,-158.08830523,0.0001,2]
[333161823,1721896232649,-27685.31152948,0.0001,2]
[333161824,1721896232658,-8842.16027773,0.0001,2]
[333161825,1721896232670,-10556.53972227,0.0001,2]
[333161826,1721896232679,-700.0,0.0001041,2]
[333161827,1721896232689,-151.76,0.00010466,2]
[333161828,1721896232698,-724.8,0.00010467,2]
[333161829,1721896232707,-39055.98001034,0.00010672,2]
[333161830,1721896232734,-3798.3477175,0.00010672,2]
[333161831,1721896232745,-6823.87547485,0.00010672,2]
[333161832,1721896232756,-5868.83892835,0.00010672,2]
[333161833,1721896232768,-16644.35024115,0.00010672,2]
[333161834,1721896232779,-4265.1967325,0.00010672,2]
[333161835,1721896232790,-4588.20598836,0.00010672,2]
[333161836,1721896232802,-515.4161314,0.00010672,2]
[333161837,1721896232863,-3823.31881939,0.00010672,2]
[333161838,1721896232874,-1437.95656766,0.00010672,2]
[333161839,1721896232886,-1235.66988396,0.00010672,2]
[333161840,1721896232900,-1574.99401138,0.00010672,2]
[333161841,1721896233213,-765.15810418,0.00010672,2]
[333161842,1721896233571,-331.57,0.00010672,2]
[333161843,1721896233616,-486.61826601,0.00010672,2]
[333161849,1721896238275,-21628.50312297,0.00010672,2]
[333161851,1721896238285,-2300.0,0.00010684,2]
[333161853,1721896238296,-500.0,0.00010684,2]
[333161854,1721896238306,-2100.0,0.00010684,2]
[333161855,1721896238318,-274.7822,0.00010858,2]
[333161856,1721896238331,-12041.47247666,0.0001088,2]
[333161857,1721896238343,-609.55481835,0.0001088,2]
[333161858,1721896238363,-3121.61111413,0.0001088,2]
[333161859,1721896238375,-2993.0852802,0.0001088,2]
[333161860,1721896238402,-383.55309182,0.0001088,2]
[333161861,1721896238413,-556.34975306,0.0001088,2]
[333161862,1721896238425,-1340.01178555,0.0001088,2]
[333161863,1721896238436,-4522.71124739,0.0001088,2]
[333161864,1721896238460,-70510.4380743,0.0001088,2]
[333161865,1721896238472,-5241.13075619,0.0001088,2]
[333161866,1721896238525,-1165.26374629,0.0001088,2]
[333161867,1721896238538,-32050.50000001,0.0001088,2]
[333161868,1721896238550,-1921.952907,0.0001088,2]
[333161869,1721896238585,-728.74124266,0.0001088,2]
[333161870,1721896238597,-597.24,0.0001088,2]
[333161871,1721896238607,-1189.99134495,0.0001088,2]
[333162000,1721896240332,-515.12472869,0.0001088,2]
[333162007,1721896240395,-1292.76814614,0.0001088,2]
[333162009,1721896240407,-10615.37041197,0.0001088,2]
[333162011,1721896240416,-3000.0,0.0001089,2]
[333162013,1721896240426,-11711.83208327,0.0001089,2]
[333162015,1721896240435,-208.14041066,0.000109,2]
[333162017,1721896240444,-236.10078599,0.00010958,2]
[333162019,1721896240453,-500.0,0.00010958,2]
[333162021,1721896240462,-500.0,0.00010958,2]
[333162023,1721896240472,-500.0,0.00010958,2]
[333162025,1721896240484,-500.0,0.00010958,2]
[333162027,1721896240493,-500.0,0.00010958,2]
[333162029,1721896240503,-500.0,0.00010958,2]
[333162031,1721896240512,-302.0,0.00010958,2]
[333162033,1721896240522,-500.0,0.00010958,2]
[333162035,1721896240531,-500.0,0.00010958,2]
[333162037,1721896240540,-500.0,0.00010958,2]
[333162039,1721896240549,-627.75,0.00010958,2]
[333162041,1721896240561,-500.0,0.00010958,2]
[333162043,1721896240570,-500.0,0.00010958,2]
[333162045,1721896240579,-454.62605603,0.00010958,2]
[333162047,1721896240588,-500.0,0.00010958,2]
[333162049,1721896240598,-500.0,0.00010958,2]
[333162051,1721896240607,-500.0,0.00010958,2]
[333162053,1721896240616,-983.83,0.00010958,2]
[333162055,1721896240625,-500.0,0.00010959,2]
[333162057,1721896240636,-150.0,0.00010959,2]
[333162059,1721896240645,-250.0,0.00010959,2]
[333162061,1721896240654,-254.09,0.00010983,2]
[333162063,1721896240663,-305.62,0.00010983,2]
[333162065,1721896240672,-500.0,0.00010984,2]
[333162067,1721896240682,-500.0,0.00010984,2]
[333162069,1721896240691,-500.0,0.00010986,2]
[333162071,1721896240701,-500.0,0.00010986,2]
[333162073,1721896240710,-408.81539768,0.00010988,2]
[333162075,1721896240719,-500.0,0.00010988,2]
[333162077,1721896240728,-500.0,0.00010989,2]
[333162079,1721896240737,-215.5927058,0.00010989,2]
[333162081,1721896240746,-737.70755239,0.00010989,2]
[333162083,1721896240755,-502.55261871,0.00010989,2]
[333162085,1721896240765,-388.39046773,0.00010989,2]
[333162087,1721896240774,-500.0,0.00010989,2]
[333162089,1721896240783,-500.0,0.00010989,2]
[333162091,1721896240792,-500.0,0.00010989,2]
[333162092,1721896240801,-503.27189491,0.00010989,2]
[333162094,1721896240811,-500.0,0.00010989,2]
[333162096,1721896240820,-500.0,0.00010989,2]
[333162098,1721896240830,-500.0,0.00010989,2]
[333162100,1721896240839,-500.0,0.00010989,2]
[333162102,1721896240849,-830.76,0.00010989,2]
[333162104,1721896240858,-500.0,0.00010989,2]
[333162106,1721896240867,-500.0,0.00010989,2]
[333162108,1721896240876,-152.97948182,0.00010989,2]
[333162110,1721896240887,-500.0,0.00010989,2]
[333162111,1721896240896,-1055.69,0.00010989,2]
[333162113,1721896240905,-500.0,0.00010989,2]
[333162115,1721896240914,-500.0,0.00010989,2]
[333162117,1721896240924,-986.42364435,0.00010989,2]
[333162119,1721896240936,-201.33635565,0.00010989,2]
[333162121,1721896240946,-500.0,0.00010989,2]
[333162123,1721896240955,-500.0,0.00010989,2]
[333162125,1721896240964,-500.0,0.00010989,2]
[333162127,1721896240974,-546.39774078,0.00010989,2]
[333162128,1721896240983,-833.35,0.00010989,2]
[333162130,1721896240993,-191.64037689,0.00010989,2]
[333162132,1721896241002,-22256.5951953,0.0001099,2]
[333162134,1721896241012,-500.0,0.0001099,2]
[333162136,1721896241021,-500.0,0.0001099,2]
[333162138,1721896241030,-500.0,0.0001099,2]
[333162140,1721896241040,-500.0,0.0001099,2]
[333162142,1721896241049,-606.77,0.0001099,2]
[333162144,1721896241059,-500.0,0.0001099,2]
[333162146,1721896241068,-500.0,0.0001099,2]
[333162148,1721896241078,-500.0,0.0001099,2]
[333162150,1721896241088,-500.0,0.0001099,2]
[333162152,1721896241098,-500.0,0.0001099,2]
[333162154,1721896241107,-500.0,0.0001099,2]
[333162155,1721896241116,-584.18,0.0001099,2]
[333162157,1721896241126,-500.0,0.0001099,2]
[333162159,1721896241137,-500.0,0.0001099,2]
[333162161,1721896241147,-500.0,0.0001099,2]
[333162163,1721896241157,-500.0,0.0001099,2]
[333162165,1721896241167,-500.0,0.0001099,2]
[333162167,1721896241177,-500.0,0.0001099,2]
[333162169,1721896241186,-612.49008495,0.0001099,2]
[333162171,1721896241196,-500.0,0.0001099,2]
[333162173,1721896241206,-500.0,0.0001099,2]
[333162175,1721896241216,-500.0,0.0001099,2]
[333162176,1721896241225,-500.0,0.0001099,2]
[333162178,1721896241235,-500.0,0.00010991,2]
[333162180,1721896241244,-500.0,0.00010994,2]
[333162182,1721896241254,-500.0,0.00010996,2]